bitfinex/quotes_SOLUSD_20251208
["timestamp","ask_amount","ask_price","bid_price","bid_amount"]
[1765174706821,0.68,135.04,135.0,28.41970035]
[1765174707003,918.86436768,135.06,135.02,4.15342895]
[1765174707400,910.78000001,135.06,135.04,4.15342895]
[1765174707899,911.46000001,135.06,135.04,4.15342895]
[1765174708100,911.46000001,135.06,135.03,4.15342895]
[1765174710024,0.68,135.05,135.03,11.55873708]
[1765174714714,0.68,135.05,135.02,30.07551456]
[1765174714909,0.68,135.05,135.01,19.7201356]
[1765174715110,16.24470426,135.05,135.01,11.5601356]
[1765174715407,16.24470426,135.05,135.01,7.40670665]
[1765174715626,16.24470426,135.05,135.03,16.308864]
[1765174715627,0.68,135.04,135.03,16.308864]
[1765174716529,0.68,135.04,134.99,4.15342895]
[1765174716735,15.56576168,135.03,135.02,16.308864]
[1765174716935,8.16,135.03,135.02,16.308864]
[1765174717116,0.68,135.03,135.02,16.308864]
[1765174717432,0.68,135.03,135.01,16.308864]
[1765174717628,0.68,135.03,135.01,20.46229295]
[1765174718545,0.68,135.03,135.02,23.71517417]
[1765174719834,0.68,135.03,135.02,16.308864]
[1765174720022,4.83342895,135.03,135.01,16.308864]
[1765174720220,0.68,135.03,135.01,23.71558817]
[1765174720425,0.68,135.02,135.01,23.71558817]
[1765174723236,0.68,135.02,135.01,16.308864]
[1765174723536,0.68,135.02,135.01,23.71572275]
[1765174725237,8.84,135.04,135.01,23.71572275]
[1765174725433,0.68,135.03,135.01,23.71572275]
[1765174727240,0.68,135.04,135.01,23.71572275]
[1765174727411,0.68,135.03,135.01,23.71572275]
[1765174731150,0.68,135.03,135.01,16.308864]
[1765174731451,10.74170226,135.03,134.99,23.71661196]
[1765174731944,0.69,135.02,135.01,16.308864]
[1765174732657,3.34589511,135.02,135.01,16.308864]
[1765174734847,10.75220528,135.02,135.01,16.308864]
[1765174735462,3.34589511,135.02,134.96,26.68329645]
[1765174735750,3.34589511,135.01,134.97,7.40868324]
[1765174735953,0.69,135.01,134.97,23.71754724]
[1765174736129,0.69,135.0,134.99,16.308864]
[1765174736717,0.69,135.0,134.97,7.40868324]
[1765174737634,3.34589511,135.0,134.97,7.40868324]
[1765174737836,2.65589511,134.98,134.94,7.4103625]
[1765174738038,10.81589511,134.98,134.94,7.4103625]
[1765174738344,0.69,134.97,134.94,23.7192265]
[1765174739525,2.65589511,134.96,134.91,21.38641119]
[1765174739839,0.69,134.95,134.92,23.72052863]
[1765174740439,0.69,134.95,134.91,0.2]
[1765174740647,2.65589511,134.94,134.91,0.2]
[1765174740868,3.33589511,134.93,134.91,0.2]
[1765174741034,2.65589511,134.92,134.91,0.2]
[1765174741225,0.68,134.92,134.91,0.2]
[1765174742251,0.68,134.93,134.91,2.85589511]
[1765174742450,0.68,134.93,134.91,0.2]
[1765174742938,0.68,134.93,134.91,10.26803625]
[1765174743558,0.68,134.93,134.91,0.2]
[1765174744540,104.8,134.96,134.92,2.65589511]
[1765174744541,105.48,134.96,134.92,2.65589511]
[1765174744744,0.68,134.95,134.92,2.65589511]
[1765174744947,0.68,134.95,134.92,10.06760496]
[1765174746069,0.68,134.97,134.94,18.96475911]
[1765174747256,0.68,134.97,134.94,26.37532267]
[1765174747570,115.61589511,134.99,134.95,2.65589511]
[1765174747571,8.84,134.99,134.95,2.65589511]
[1765174747737,8.84,134.99,134.95,3.20589511]
[1765174748245,0.68,134.98,134.95,2.65589511]
[1765174749181,0.68,134.98,134.94,26.37532267]
[1765174750768,0.68,134.98,134.95,2.65589511]
[1765174751280,0.68,134.98,134.95,10.06597114]
[1765174752356,0.68,134.98,134.96,2.65589511]
[1765174753679,0.68,135.0,134.97,2.65589511]
[1765174754475,0.68,135.0,134.97,10.06448335]
[1765174757000,8.16,135.01,134.97,10.06448335]
[1765174757194,8.84,135.01,134.97,10.61448335]
[1765174757407,0.68,135.0,134.97,10.61448335]
[1765174757695,0.68,135.0,134.97,10.06448335]
[1765174759993,0.68,135.02,134.98,2.65589511]
[1765174760192,0.68,135.02,135.0,2.65589511]
[1765174762191,8.08644846,135.02,134.99,18.96475911]
[1765174762601,0.7,135.01,134.99,18.96475911]
[1765174762898,0.7,135.01,134.99,26.37270935]
[1765174770115,112.20583856,135.03,134.99,26.37270935]
[1765174770413,112.90583856,135.03,134.99,26.92270935]
[1765174770714,0.7,135.02,135.0,2.65589511]
[1765174771794,8.86,135.04,135.01,2.65589511]
[1765174772120,8.16,135.04,135.01,2.65589511]
[1765174772316,0.7,135.03,135.01,2.65589511]
[1765174773212,0.7,135.03,135.01,10.06266184]
[1765174773730,8.86,135.04,135.01,10.06266184]
[1765174774212,8.16,135.04,135.02,2.65589511]
[1765174774405,8.86,135.04,135.02,2.65589511]
[1765174774907,0.7,135.03,135.02,2.65589511]
[1765174775110,0.7,135.03,135.02,10.06220528]
[1765174775601,8.16,135.04,135.02,10.06220528]
[1765174775805,8.86,135.04,135.02,10.06220528]
[1765174778024,8.86,135.04,135.01,10.06251493]
[1765174778517,0.7,135.03,135.01,10.06251493]
[1765174779223,0.7,135.03,135.01,16.308864]
[1765174779517,10.76174915,135.03,134.99,16.308864]
[1765174780126,0.7,135.02,134.99,16.308864]
[1765174780910,0.7,135.02,134.99,23.71668786]
[1765174781106,0.7,135.02,135.0,7.4072577]
[1765174783221,0.7,135.02,134.99,23.71660042]
[1765174784710,4.84946568,135.02,134.99,23.71660042]
[1765174784916,0.7,135.01,134.99,23.71660042]
[1765174795334,8.84,135.04,135.0,0.55]
[1765174795532,0.68,135.03,135.0,0.55]
[1765174795719,0.68,135.03,134.99,46.38595646]
[1765174795908,0.68,135.03,134.99,46.93595646]
[1765174796225,4.82946568,135.03,134.99,23.71660042]
[1765174796430,0.68,135.02,134.99,23.71660042]
[1765174799409,0.68,135.02,134.99,28.4160661]
[1765174799736,0.68,135.02,134.99,24.26660042]
[1765174799910,0.68,135.02,134.99,28.4160661]
[1765174800106,8.14,135.03,134.99,28.4160661]
[1765174800326,11.55489731,135.04,135.01,4.14946568]
[1765174800327,0.68,135.04,135.01,4.14946568]
[1765174800634,911.46000001,135.06,135.03,20.45832968]
[1765174800935,911.46000001,135.06,135.03,16.308864]
[1765174801155,0.68,135.05,135.03,16.308864]
[1765174801636,0.68,135.05,135.03,23.71457474]
[1765174803640,0.68,135.05,135.03,16.308864]
[1765174805417,0.68,135.05,135.03,23.71458995]
[1765174806918,0.68,135.05,135.02,7.40629841]
[1765174808218,0.68,135.05,135.03,7.40566785]
[1765174808952,0.68,135.05,135.02,7.40631017]
[1765174809157,0.68,135.05,135.02,7.95631017]
[1765174809522,0.68,135.05,135.02,12.10577585]
[1765174810825,911.50000001,135.06,135.02,12.10577585]
[1765174811030,0.72,135.05,135.02,12.10577585]
[1765174812689,0.72,135.05,135.02,30.62155129]
[1765174812871,910.78000001,135.06,135.04,20.45832968]
[1765174813028,910.78000001,135.06,135.05,16.308864]
[1765174814132,910.78000001,135.06,135.05,20.45832968]
[1765174814847,910.78000001,135.06,135.05,27.86299461]
[1765174815831,910.78000001,135.06,135.05,28.41299461]
[1765174816440,910.78000001,135.06,135.05,23.71352893]
[1765174817339,911.50000001,135.06,135.05,16.308864]
[1765174818465,911.50000001,135.06,135.05,23.71352893]
[1765174819173,910.78000001,135.06,135.05,23.71352893]
[1765174820206,911.50000001,135.06,135.05,23.71352893]
[1765174820364,911.50000001,135.06,135.05,7.40466493]
[1765174820539,911.50000001,135.06,135.04,7.40502325]
[1765174820735,0.72,135.05,135.04,7.40502325]
[1765174821572,0.72,135.05,135.03,23.71457598]
[1765174825170,911.48000001,135.06,135.03,28.41404166]
[1765174825594,911.48000001,135.06,135.03,46.37844586]
[1765174826586,910.78000001,135.06,135.04,4.14946568]
[1765174826787,910.78000001,135.06,135.05,20.45832968]
[1765174827297,910.78000001,135.06,135.05,27.86299461]
[1765174827864,911.48000001,135.06,135.04,7.40513306]
[1765174828065,0.7,135.05,135.04,7.40513306]
[1765174828263,0.7,135.05,135.03,38.97273388]
[1765174828463,4.84946568,135.05,135.03,16.308864]
[1765174828968,0.7,135.04,135.03,16.308864]
[1765174829168,4.84946568,135.04,135.01,7.40652025]
[1765174829404,12.25479976,135.04,135.0,7.40718649]
[1765174829572,12.98946568,135.03,134.99,7.40763646]
[1765174829778,0.7,135.02,134.99,23.71650046]
[1765174831196,12.25580214,135.02,134.99,16.308864]
[1765174831494,4.14946568,135.01,134.98,7.40831414]
[1765174831693,12.98946568,135.01,134.98,23.71717814]
[1765174831870,0.7,135.0,134.98,23.71717814]
[1765174832272,0.7,135.0,134.98,16.308864]
[1765174833890,0.7,135.0,134.98,23.71728099]
[1765174834195,8.14,135.01,134.98,27.86674667]
[1765174834391,8.84,135.01,134.98,27.86674667]
[1765174834596,8.14,135.01,134.98,27.86674667]
[1765174834772,0.7,135.0,134.98,23.71728099]
[1765174843311,0.7,135.0,134.98,16.308864]
[1765174843905,0.7,135.0,134.98,23.71733652]
[1765174846320,0.7,135.0,134.98,16.308864]
[1765174846804,8.10746221,135.0,134.98,16.308864]
[1765174847002,0.7,134.99,134.98,16.308864]
[1765174853597,0.7,134.99,134.96,23.71824265]
[1765174857022,0.7,134.99,134.96,26.92490468]
[1765174857195,0.7,134.99,134.97,2.65666203]
[1765174858016,0.7,134.99,134.96,26.92490468]
[1765174858320,0.7,134.99,134.96,26.37490468]
[1765174860616,0.7,134.99,134.97,10.06534593]
[1765174862722,0.7,134.99,134.97,7.4086839]
[1765174863518,15.54651646,135.02,134.97,10.06534593]
[1765174863722,0.67,135.01,134.98,2.65666203]
[1765174864590,10.73382317,135.01,134.96,26.37487622]
[1765174864791,10.73382317,135.01,134.96,18.96552603]
[1765174865021,0.67,135.0,134.96,18.96552603]
[1765174865615,0.67,135.0,134.97,7.40893315]
[1765174865920,8.07746005,135.0,134.97,7.40893315]
[1765174866528,0.67,134.99,134.97,7.40893315]
[1765174886544,7.40711074,135.01,134.97,10.06559518]
[1765174886843,0.66,135.0,134.97,10.61559518]
[1765174887440,0.66,135.0,134.97,10.06559518]
[1765174887768,8.06747799,135.0,134.97,7.40893315]
[1765174888121,0.66,134.99,134.97,7.40893315]
[1765174894943,0.66,134.99,134.96,23.71821393]
[1765174896825,0.66,134.99,134.96,24.26821393]
[1765174897047,0.66,134.99,134.96,26.92487596]
[1765174898646,0.66,134.99,134.96,24.26821393]
[1765174899150,0.66,134.99,134.96,26.92487596]
[1765174899848,8.06807938,134.99,134.96,18.96552603]
[1765174900043,8.06807938,134.99,134.96,16.308864]
[1765174900242,0.66,134.98,134.96,16.308864]
[1765174902148,0.66,134.98,134.96,23.71841121]
[1765174903831,0.66,134.98,134.96,26.37507324]
[1765174904030,0.66,134.99,134.96,26.37507324]
[1765174904635,0.66,134.99,134.96,23.71841121]
[1765174904841,0.66,134.99,134.96,27.87029736]
[1765174905438,0.66,134.99,134.96,23.71841121]
[1765174910555,0.66,134.99,134.96,24.26841121]
[1765174911058,0.66,134.99,134.96,23.71841121]
[1765174911463,0.66,134.99,134.96,28.42029736]
[1765174918665,0.66,134.99,134.96,24.26841121]
[1765174921567,0.66,134.99,134.96,23.71841121]
[1765174922678,0.66,134.99,134.96,24.26841121]
[1765174922862,0.66,134.99,134.96,28.42029736]
[1765174923049,8.83,135.0,134.97,4.70188615]
[1765174923252,8.14,135.0,134.97,0.55]
[1765174923579,0.69,134.99,134.96,28.42029736]
[1765174923946,0.69,134.99,134.96,27.87029736]
[1765174924470,0.69,134.99,134.96,28.42029736]
[1765174924650,0.69,134.99,134.96,27.87029736]
[1765174925566,0.69,134.99,134.96,28.42029736]
[1765174925771,0.69,134.99,134.96,27.87029736]
[1765174925958,0.69,134.99,134.96,28.42029736]
[1765174926885,0.69,134.99,134.96,27.87029736]
[1765174927350,0.69,134.99,134.96,23.71841121]
[1765174928984,12.24987562,134.99,134.94,11.55947662]
[1765174929270,4.15188615,134.98,134.94,7.4103718]
[1765174929469,4.84188615,134.98,134.94,7.4103718]
[1765174929668,8.83,134.97,134.93,4.15188615]
[1765174929864,12.98188615,134.97,134.94,16.308864]
[1765174930177,0.69,134.96,134.94,16.308864]
[1765174936480,0.69,134.96,134.94,23.71956062]
[1765174936859,0.69,134.96,134.94,16.308864]
[1765174938685,0.69,134.96,134.94,23.71955826]
[1765174941393,0.69,134.96,134.94,45.97227494]
[1765174942164,0.69,134.96,134.94,23.71955826]
[1765174943067,0.69,134.96,134.94,45.97227494]
[1765174952309,0.69,134.96,134.94,23.71955826]
[1765174952677,12.29188615,134.95,134.93,22.25271668]
[1765174952881,12.29188615,134.95,134.91,0.75]
[1765174953197,0.67,134.94,134.91,39.31158068]
[1765174953600,0.67,134.94,134.93,7.41112506]
[1765174954304,0.67,134.94,134.92,7.41179958]
[1765174954512,0.67,134.94,134.91,0.2]
[1765174954513,12.23274845,134.94,134.91,0.2]
[1765174954811,34.48546513,134.94,134.91,7.61232478]
[1765174954989,22.92271668,134.94,134.91,8.16232478]
[1765174955191,0.67,134.94,134.91,8.16232478]
[1765174955777,0.67,134.94,134.91,30.41834317]
[1765174956409,0.67,134.94,134.91,34.57022932]
[1765174956579,0.67,134.94,134.91,53.10110175]
[1765174959120,8.08083034,134.94,134.91,0.2]
[1765174959296,4.15188615,134.92,134.91,0.2]
[1765174959716,4.82188615,134.92,134.91,0.2]
[1765174959997,27.08285895,134.92,134.91,0.2]
[1765174960801,42.63465853,134.92,134.91,0.2]
[1765174964801,22.9309728,134.92,134.91,0.2]
[1765174966125,0.67,134.92,134.91,0.2]
[1765174967005,8.08179958,134.92,134.91,0.2]
[1765174967521,10.74137014,134.92,134.91,0.2]
[1765174968023,2.65957056,134.91,134.9,0.2]
[1765174968198,3.32957056,134.91,134.9,0.2]
[1765174969604,10.74191953,134.91,134.9,0.2]
[1765174969799,13.71071011,134.91,134.9,0.2]
[1765174970127,21.87071011,134.91,134.9,0.2]
[1765174974201,30.68065503,134.91,134.9,0.2]
[1765174978438,8.80994492,134.9,134.89,0.2]
[1765174978618,12.15951548,134.9,134.89,0.2]
[1765174978814,28.46837948,134.9,134.89,0.00011405]
[1765174979029,31.4380517,134.9,134.89,0.00011405]
[1765174980415,38.85095014,134.9,134.89,0.00011405]
[1765174980810,30.04100522,134.9,134.89,0.00011405]
[1765174981020,38.20100522,134.9,134.89,0.00011405]
[1765174981836,11.07257066,134.9,134.89,0.00011405]
[1765174982137,16.26289844,134.9,134.89,0.00011405]
[1765174983030,15.57289844,134.9,134.89,0.00011405]
[1765174984213,16.26289844,134.9,134.89,0.00011405]
[1765174984815,8.16,134.9,134.89,0.00011405]
[1765174987326,8.16,134.9,134.89,2.65968461]
[1765174990248,8.16,134.9,134.89,3.31968461]
[1765174990744,8.16,134.9,134.89,2.65968461]
[1765174991127,8.16,134.9,134.89,0.00011405]
[1765174993744,16.26289844,134.9,134.89,0.00011405]
[1765174994330,15.57289844,134.9,134.89,0.00011405]
[1765174994640,8.16,134.9,134.89,0.00011405]
[1765174996143,8.16,134.9,134.89,2.65968461]
[1765174996338,8.16,134.9,134.89,3.31968461]
[1765174996942,8.16,134.9,134.89,2.65968461]
[1765174997333,8.16,134.9,134.89,3.31968461]
[1765174997720,8.16,134.9,134.89,2.65968461]
[1765174997922,7.41236522,134.91,134.89,2.65968461]
[1765174998246,16.26236522,134.91,134.89,2.65968461]
[1765174999859,16.26236522,134.91,134.89,0.00011405]
[1765175000024,16.26236522,134.91,134.89,2.65968461]
[1765175001253,16.26236522,134.91,134.89,0.00011405]
[1765175001927,16.26236522,134.91,134.89,2.65968461]
[1765175002126,16.26236522,134.91,134.89,3.33968461]
[1765175002127,15.57236522,134.91,134.89,3.33968461]
[1765175002356,15.57236522,134.91,134.89,2.65968461]
[1765175002538,16.26236522,134.91,134.89,2.65968461]
[1765175003046,8.16,134.91,134.89,3.33968461]
[1765175003239,8.85,134.91,134.89,2.65968461]
[1765175004855,8.16,134.91,134.89,0.68011405]
[1765175005046,18.52865808,134.93,134.9,2.65957056]
[1765175005047,7.41146657,134.93,134.9,2.65957056]
[1765175005368,8.16,134.92,134.9,3.33957056]
[1765175005553,8.16,134.92,134.91,0.68]
[1765175006125,8.16,134.92,134.9,3.33957056]
[1765175007254,8.16,134.92,134.9,10.75222418]
[1765175007462,8.16,134.92,134.9,10.07222418]
[1765175007663,8.16,134.92,134.9,10.75222418]
[1765175008639,8.16,134.92,134.9,3.33957056]
[1765175008838,8.85,134.92,134.9,2.65957056]
[1765175009336,8.16,134.92,134.9,2.65957056]
[1765175009957,8.16,134.92,134.9,3.33957056]
[1765175011357,0.69,134.91,134.89,0.00011405]
[1765175013647,8.16,134.9,134.89,0.00011405]
[1765175020179,8.85,134.9,134.89,0.00011405]
[1765175020670,8.16,134.9,134.89,0.00011405]
[1765175025081,8.85,134.9,134.89,0.00011405]
[1765175028797,16.26289844,134.9,134.89,0.00011405]
[1765175029468,20.41990059,134.9,134.89,0.00011405]
[1765175030462,46.5387095,134.9,134.89,0.00011405]
[1765175030881,45.53870951,134.9,134.89,0.00011405]
[1765175031085,33.22170736,134.9,134.89,0.00011405]
[1765175031271,20.41990059,134.9,134.89,0.00011405]
[1765175031460,0.69,134.9,134.89,0.00011405]
[1765175031664,8.85,134.9,134.89,0.00011405]
[1765175034284,20.41990059,134.9,134.89,0.00011405]
[1765175041888,16.26289844,134.9,134.89,0.00011405]
[1765175042991,8.16,134.9,134.89,0.00011405]
[1765175043185,8.88,134.9,134.89,0.00011405]
[1765175046201,0.72,134.9,134.89,0.00011405]
[1765175046378,8.88,134.9,134.89,0.00011405]
[1765175048403,117.08954163,134.91,134.89,0.00011405]
[1765175048578,8.16,134.9,134.89,0.00011405]
[1765175048900,8.88,134.9,134.89,0.00011405]
[1765175049079,16.29289844,134.9,134.89,0.00011405]
[1765175049280,20.44990059,134.9,134.89,0.00011405]
[1765175049922,29.25984551,134.9,134.89,0.00011405]
[1765175050410,33.41684766,134.9,134.89,0.00011405]
[1765175050707,36.38651988,134.9,134.89,0.00011405]
[1765175051204,33.41684766,134.9,134.89,0.00011405]
[1765175054887,34.41684765,134.9,134.89,0.00011405]
[1765175059504,33.41684766,134.9,134.89,0.00011405]
[1765175059710,34.41684765,134.9,134.89,0.00011405]
[1765175061914,30.2598455,134.9,134.89,0.00011405]
[1765175062295,29.25984551,134.9,134.89,0.00011405]
[1765175062503,30.2598455,134.9,134.89,0.00011405]
[1765175064233,34.41684765,134.9,134.89,0.00011405]
[1765175065093,37.38674036,134.9,134.89,0.00011405]
[1765175065819,34.41684765,134.9,134.89,0.00011405]
[1765175066592,37.38674036,134.9,134.89,0.00011405]
[1765175067292,34.41684765,134.9,134.89,0.00011405]
[1765175068016,16.308864,134.88,134.87,1e-08]
[1765175068223,28.62586615,134.88,134.87,1e-08]
[1765175068512,36.75986377,134.88,134.87,1e-08]
[1765175074002,45.56980869,134.88,134.87,1e-08]
[1765175076103,45.56980869,134.88,134.85,1e-08]
[1765175076104,0.99999999,134.86,134.85,1e-08]
[1765175076296,29.62586614,134.86,134.85,1e-08]
[1765175076497,29.34586615,134.86,134.85,1e-08]
[1765175076701,25.188864,134.86,134.85,1e-08]
[1765175076920,29.34586615,134.86,134.85,1e-08]
[1765175077116,38.15581107,134.86,134.85,1e-08]
[1765175077328,45.5709082,134.86,134.85,1e-08]
[1765175077722,41.41390605,134.86,134.85,1e-08]
[1765175077908,45.5709082,134.86,134.85,1e-08]
[1765175082128,7.41509713,134.86,134.85,1e-08]
[1765175082328,15.57509713,134.86,134.85,0.66000001]
[1765175082533,112.21464736,134.87,134.85,0.66000001]
[1765175082731,8.16,134.86,134.85,0.66000001]
[1765175085330,15.57509713,134.86,134.85,0.66000001]
[1765175090337,18.23803555,134.86,134.85,0.66000001]
[1765175090741,18.95803555,134.86,134.85,1e-08]
[1765175094536,18.23803555,134.86,134.85,1e-08]
[1765175096428,10.07803555,134.86,134.85,1e-08]
[1765175096637,18.23803555,134.86,134.85,1e-08]
[1765175097349,18.88803555,134.86,134.85,1e-08]
[1765175097828,18.23803555,134.86,134.85,1e-08]
[1765175099346,18.95803555,134.86,134.85,1e-08]
[1765175099846,10.07803555,134.86,134.85,0.67000001]
[1765175100051,18.23803555,134.86,134.85,1e-08]
[1765175101850,18.23803555,134.86,134.85,0.67000001]
[1765175102057,104.8,134.87,134.85,0.67000001]
[1765175102347,112.96,134.87,134.85,0.67000001]
[1765175102547,8.16,134.87,134.85,0.67000001]
[1765175106555,8.16,134.87,134.85,8.08563011]
[1765175107454,8.16,134.87,134.86,0.67]
[1765175112448,18.23748576,134.87,134.85,1e-08]
[1765175112758,8.16,134.87,134.85,0.67000001]
[1765175113557,10.07712077,134.88,134.85,0.67000001]
[1765175113760,8.16,134.87,134.85,0.67000001]
[1765175114435,15.57465468,134.87,134.85,0.67000001]
[1765175115063,8.16,134.87,134.85,0.67000001]
[1765175116738,10.79715002,134.88,134.85,0.67000001]
[1765175116939,10.82293842,134.87,134.85,0.67000001]
[1765175117240,11.54293842,134.87,134.85,1e-08]
[1765175117437,2.66293842,134.86,134.85,1e-08]
[1765175117646,3.38293842,134.86,134.85,1e-08]
[1765175118872,10.79803555,134.86,134.85,1e-08]
[1765175127074,115.59803555,134.86,134.85,1e-08]
[1765175142074,124.40798047,134.86,134.85,1e-08]
[1765175142281,115.59803555,134.86,134.85,1e-08]
[1765175143586,123.75803555,134.86,134.85,1e-08]
[1765175143788,104.8,134.86,134.85,0.68000001]
[1765175144909,8.16,134.87,134.85,0.68000001]
[1765175146199,8.16,134.87,134.85,8.09532262]
[1765175146378,8.16,134.87,134.86,0.68]
[1765175147802,7.4140977,134.88,134.86,0.68]
[1765175148016,8.16,134.87,134.86,0.68]
[1765175153775,104.8,134.89,134.86,8.09509713]
[1765175154094,104.8,134.89,134.86,12.25433779]
[1765175154273,7.41309165,134.9,134.88,4.15924066]
[1765175154274,8.16,134.9,134.88,4.15924066]
[1765175154775,8.16,134.9,134.89,0.71]
[1765175156701,8.16,134.9,134.89,8.12344799]
[1765175158498,8.16,134.91,134.89,12.28268865]
[1765175158706,8.16,134.91,134.9,0.71]
[1765175164316,8.16,134.95,134.9,30.8143852]
[1765175164496,8.87,134.95,134.91,4.15924066]
[1765175164695,8.87,134.95,134.92,0.71]
[1765175165008,8.87,134.95,134.92,4.86924066]
[1765175165213,8.16,134.96,134.92,4.86924066]
[1765175165419,8.16,134.96,134.93,0.71]
[1765175165912,8.16,134.96,134.93,21.17810466]
[1765175166118,12.27740218,134.99,134.94,4.15924066]
[1765175166302,12.27740218,134.99,134.95,7.4101519]
[1765175166503,8.16,134.98,134.95,8.1201519]
[1765175166698,8.16,134.98,134.95,7.4101519]
[1765175166903,8.16,134.98,134.96,0.71]
[1765175167412,8.87,134.98,134.95,0.71]
[1765175168206,8.87,134.98,134.93,16.308864]
[1765175168207,4.86924066,134.97,134.93,16.308864]
[1765175168413,12.27882229,134.97,134.93,16.308864]
[1765175168613,0.71,134.96,134.93,16.308864]
[1765175168811,8.16,134.95,134.92,8.12146433]
[1765175169209,8.87,134.95,134.92,8.12146433]
[1765175169407,8.16,134.95,134.91,27.8802228]
[1765175169607,0.71,134.94,134.91,28.5902228]
[1765175170005,0.71,134.94,134.91,24.43098214]
[1765175170503,0.71,134.94,134.91,17.018864]
[1765175170705,8.16,134.93,134.91,16.308864]
[1765175171024,8.16,134.93,134.91,17.018864]
[1765175171619,8.16,134.93,134.91,24.43114241]
[1765175171819,12.27906694,134.96,134.92,0.71]
[1765175172015,8.16,134.95,134.92,0.71]
[1765175172225,8.16,134.95,134.93,4.15924066]
[1765175172421,8.16,134.95,134.93,11.57014134]
[1765175172614,8.16,134.95,134.93,12.28014134]
[1765175172928,8.87,134.95,134.92,12.28084034]
[1765175173529,8.16,134.95,134.93,8.12118094]
[1765175173724,8.16,134.95,134.93,7.41118094]
[1765175173920,8.87,134.95,134.93,7.41118094]
[1765175175032,4.86924066,134.94,134.89,35.55204293]
[1765175175205,0.71,134.94,134.92,7.41175549]
[1765175175405,8.16,134.93,134.91,4.15924066]
[1765175175620,8.16,134.93,134.91,4.86924066]
[1765175175907,8.16,134.93,134.91,12.28139345]
[1765175176127,8.16,134.93,134.91,4.86924066]
[1765175176414,8.16,134.93,134.9,7.4127962]
[1765175176415,8.87,134.93,134.9,11.57203686]
[1765175176629,0.71,134.92,134.89,11.57248711]
[1765175177224,0.71,134.92,134.89,12.28248711]
[1765175177918,0.71,134.92,134.9,7.41284702]
[1765175178120,8.16,134.93,134.9,8.12284702]
[1765175178420,8.87,134.93,134.9,8.12284702]
[1765175178632,8.87,134.93,134.9,12.28208768]
[1765175179216,8.16,134.93,134.9,12.28208768]
[1765175181022,8.16,134.93,134.91,12.2713783]
[1765175181237,0.72,134.97,134.92,4.15924066]
[1765175181412,8.88,134.97,134.93,4.15924066]
[1765175181742,8.88,134.97,134.93,4.85924066]
[1765175181907,12.28741841,134.99,134.94,4.85924066]
[1765175182231,8.16,134.98,134.94,4.85924066]
[1765175182412,8.88,134.98,134.94,4.85924066]
[1765175183123,15.56864778,134.98,134.94,4.85924066]
[1765175183329,8.88,134.98,134.95,0.7]
[1765175185138,8.88,134.98,134.95,4.85924066]
[1765175185441,8.88,134.98,134.95,12.26937218]
[1765175188123,0.72,134.97,134.94,11.56971048]
[1765175188428,0.72,134.97,134.94,7.41046982]
[1765175188635,0.72,134.97,134.93,11.57031331]
[1765175189421,8.12920941,134.97,134.93,11.57031331]
[1765175189625,8.12920941,134.97,134.93,12.27031331]
[1765175189821,0.72,134.97,134.94,4.85924066]
[1765175190430,0.72,134.97,134.94,4.15924066]
[1765175190741,0.72,134.97,134.94,11.56955248]
[1765175190925,8.16,134.97,134.95,4.85924066]
[1765175191848,8.88,134.97,134.94,12.26955248]
[1765175192219,8.88,134.97,134.94,11.56955248]
[1765175197146,0.72,134.96,134.94,11.56955248]
[1765175197349,0.72,134.96,134.94,7.41031182]
[1765175198832,0.72,134.96,134.93,4.15924066]
[1765175198833,0.72,134.96,134.93,11.57028788]
[1765175201439,8.12961756,134.96,134.93,11.57028788]
[1765175201641,0.72,134.95,134.93,7.41104722]
[1765175203530,0.72,134.95,134.93,11.57028788]
[1765175205951,15.56929988,134.97,134.93,11.57028788]
[1765175206135,0.72,134.96,134.93,12.27028788]
[1765175206335,0.72,134.96,134.93,11.57028788]